[Event "2nd Cambridge Open 2024"]
[Site "Cambridge"]
[Date "2024.02.21"]
[Round "5.10"]
[White "Martyn, Rafe"]
[Black "Vardanyan, Aras"]
[Result "0-1"]
[ECO "B67"]
[WhiteElo "2206"]
[BlackElo "2284"]
[Annotator "TA"]
[PlyCount "128"]
[EventDate "2024.02.18"]
[EventType "swiss"]
[EventCountry "ENG"]
[SourceTitle "playchess.com"]
[Source "ChessBase"]
[SourceQuality "1"]
[TimeControl "5400+30"]

{[%evp 20,128,32,36,82,37,56,48,64,39,25,0,0,0,54,0,101,50,159,166,184,165,360,377,439,457,437,487,665,641,690,602,620,618,633,626,625,626,789,762,710,386,632,477,457,406,988,991,1587,1606,29992,29993,29993,29994,29994,29993,29993,29994,29994,29981,29974,521,1445,1187,29985,106,97,0,29984,0,114,112,106,121,247,240,209,81,96,89,106,0,0,0,0,0,0,0,0,0,0,0,0,0,0,-55,-9,-29981,-29982,-29982,-29983,-29983,-29984,-29984,-29985,-29986,-29987,-29987,29988,29985,29985]} 1. e4 {[%emt 0:00:02]} c5 {[%emt 0:00:07]} 2. Nf3 {[%emt 0:00:03]} d6 {[%emt 0:00:04]} 3. d4 {[%emt 0:00:31]} cxd4 {[%emt 0:00:06]} 4. Nxd4 {[%emt 0:00:03]} Nf6 {[%emt 0:00:06]} 5. Nc3 {[%emt 0:00:02]} Nc6 {[%emt 0:00:08]} 6. Bg5 {[%emt 0:07:18]} e6 {[%emt 0:00:09]} 7. Qd2 {[%emt 0:00:13]} a6 {[%emt 0:02:10]} 8. O-O-O {[%emt 0:02:41]} Bd7 {[%emt 0:03:50]} 9. f4 {[%emt 0:01:23]} h6 {[%emt 0:08:27]} 10. Bh4 {[%emt 0:03:23]} Be7 {[%emt 0:07:58]} 11. Nf3 {[%emt 0:01:30]} b5 {[%emt 0:01:48]} (11... Qc7 $14) 12. Bxf6 {[%emt 0:36:43]} gxf6 {[%emt 0:01:59] [#]} 13. f5 $1 {[%emt 0:02:01]} Qb6 {[%emt 0:02:28] Weiß steht etwas besser.} 14. fxe6 {[%emt 0:02:31]} fxe6 {[%emt 0:00:54]} 15. g3 {[%emt 0:03:20]} Rc8 {[%emt 0:08:44]} 16. Bh3 {[%emt 0:03:59]} Qc5 {[%emt 0:01:28]} ({Vorzuziehen ist} 16... Ne5 $11 17. Nd4 f5) 17. Kb1 {[%emt 0:08:42]} (17. Ne2 $1 $14) 17... Qh5 {[%emt 0:07:25]} (17... Ne5 $1 $11 {hält das Gleichgewicht.} 18. Nd4 Nc4) 18. Qg2 {[%emt 0:02:02]} (18. Nh4 $16) 18... Na5 {[%emt 0:01:08]} (18... Ne5 $14 19. Nd2 Nf7) 19. Ne2 $1 $16 {[%emt 0:00:40][%cal Bc3e2,Be2f4,Bf4e6,Be6d4][%mdl 32]} Nc4 {[%emt 0:07:19]} 20. Nf4 {[%emt 0:00:37]} Qc5 {[%emt 0:03:46]} (20... Qf7) 21. Nxe6 $18 {[%emt 0:02:14]} (21. Bxe6 Ne3 22. Bxd7+ Kxd7 23. Qh3+ f5 $18) 21... Qb4 {[%emt 0:05:07][%csl Gc4][%cal Rb4b2]} 22. c3 {[%emt 0:02:11]} Na3+ {[%emt 0:09:14]} 23. Ka1 {[%emt 0:00:07]} Qxe4 {[%emt 0:01:48]} 24. Ned4 {[%emt 0:00:20] Gegen Nc2+ gerichtet.} Nc4 {[%emt 0:01:30]} 25. Rhe1 {[%emt 0:00:48]} Qb7 {[%emt 0:01:10]} 26. Bxd7+ {[%emt 0:02:50]} Qxd7 {[%emt 0:00:03]} 27. Ne6 {[%emt 0:00:19]} Qb7 {[%emt 0:05:49]} 28. Qe2 {[%emt 0:00:40]} Kf7 {[%emt 0:01:52][%cal Be8f7,Bf7g6,Bg6h6][%mdl 32]} 29. Nfd4 {[%emt 0:05:24]} h5 {[%emt 0:01:13]} 30. Rf1 {[%emt 0:00:04]} b4 $2 {[%emt 0:02:17]} (30... Ne5 31. Ng5+ Kg8) 31. cxb4 {[%emt 0:06:28]} Qxb4 {[%emt 0:01:27]} 32. Rc1 {[%emt 0:01:10]} Qd2 {[%emt 0:01:07] Lässt Ng5+ nicht zu} (32... Qxb2+ $142 33. Qxb2 Nxb2 34. Rxc8 (34. Kxb2 h4 $18) 34... Rxc8 35. Kxb2 Rg8) 33. Ng5+ {[%emt 0:02:39] Hervorragende Reitkunst.} (33. Rxc4 $2 Qxe2 34. Ng5+ Kg6 35. Nxe2 Rxc4 $19) 33... Kg6 {[%emt 0:00:57]} 34. Qe4+ {[%emt 0:00:19]} (34. Rxc4 $2 Qxe2 (34... Qxg5 $2 35. Qe4+ f5 36. Nxf5 $18) 35. Nxe2 Rxc4 $19) 34... Kh6 {[%emt 0:01:09]} 35. Nf5+ {[%emt 0:00:14]} (35. Qxe7 $2 Qxb2#) 35... Kxg5 {[%emt 0:00:27]} 36. h4+ {[%emt 0:00:07]} (36. Nxe7 $2 Qxb2#) 36... Kg6 {[%emt 0:00:08]} 37. Nxd6+ {[%emt 0:02:39]} Kh6 {[%emt 0:00:21]} 38. Nf5+ {[%emt 0:00:03]} Kg6 {[%emt 0:00:04]} 39. Rxc4 {[%emt 0:00:28]} Rxc4 {[%emt 0:00:17]} 40. Qxc4 {[%emt 0:00:06]} (40. Nxe7+ $142 Kf7 41. Qxc4+ Kxe7 42. Qc7+ (42. Qxa6 Re8 $18) 42... Ke8 43. Qc6+ (43. Rxf6 $2 Qe1+) 43... Qd7 44. Qxf6 (44. Qxa6 Rh6 $18) (44. Re1+ Kd8 $18) 44... Qe7 45. Qxh8+ Kd7 46. Qxh5) 40... Bd6 {[%emt 0:00:55]} 41. Qe4 {[%emt 0:00:35] Es drohte Re8} (41. Qxa6 $2 Rb8 42. Rb1 Be5 (42... Kxf5 $2 43. Qf1+ Kg6 44. Qe1 $19) 43. Ne7+ Kh7 $19) 41... Be5 {[%emt 0:00:24]} 42. Ne3+ $2 {[%emt 0:02:38]} (42. Nd6+ Kh6 43. Nf7+ Kg7 44. Nxe5 (44. Nxh8 $2 Qxb2#) 44... Rf8 45. Qg6+ Kh8 46. Nf7+ (46. Rxf6 Qe1+ 47. Qb1 Qxb1+ 48. Kxb1 Rxf6 $17) (46. Qxh5+ Kg7 47. Qg6+ Kh8 48. Nf7+ Rxf7 49. Qxf7 Qd8 50. Re1 a5 51. Re8+ Qxe8) 46... Rxf7 47. Qxf7) 42... Kh6 $16 {[%emt 0:00:52][%csl Ge5][%cal Rd2b2]} 43. Nf5+ $2 {[%emt 0:00:02][%mdl 8192]} (43. Nc4 $16 Qd4 44. Qe2) 43... Kg6 {[%emt 0:00:02][%csl Ge5][%cal Rd2b2]} 44. Ne3+ $2 {[%emt 0:00:31]} (44. Nd6+ $1 {setzt Matt} Kh6 45. Nf7+ Kg7 46. Nxe5 (46. Nxh8 $2 Qxb2#) 46... Rf8 47. Qg6+ Kh8 48. Qxh5+ (48. Rxf6 Qe1+ 49. Qb1 Qxb1+ 50. Kxb1 Rxf6 $17) 48... Kg8 49. Qg6+ Kh8 50. Nf7+ (50. Rxf6 Qe1+ 51. Qb1 Qxb1+ 52. Kxb1 Rxf6 $16) 50... Rxf7 51. Qxf7) 44... Kh6 {[%emt 0:00:02] Das Brett brennt.} 45. Nc4 {[%emt 0:00:18]} Qd4 {[%emt 0:00:37]} 46. Qe2 {[%emt 0:00:20]} Rb8 {[%emt 0:04:28]} (46... Bxg3 $2 47. Ne3 Qe5 48. Qc2 $18) (46... Re8 $16) 47. Nxe5 $18 {[%emt 0:00:06]} Qxe5 {[%emt 0:00:07][%mdl 4096] Endspiel. KQR-KQR} 48. Qf2 {[%emt 0:00:34]} (48. Qxa6 $2 Qxb2#) (48. Qxe5 $18 fxe5 49. Rf6+ Kh7 50. Rxa6) 48... Kg6 {[%emt 0:00:32]} 49. a3 {[%emt 0:00:06]} a5 {[%emt 0:00:29]} 50. Re1 {[%emt 0:00:24]} (50. Qc2+ $16 Kg7 51. Rd1) 50... Rxb2 $1 $11 {[%emt 0:00:34] ( -> ...Re2+)} 51. Rxe5 {[%emt 0:01:21]} Rxf2 {[%emt 0:00:02]} 52. Rxa5 {[%emt 0:00:08] KR-KR} Rf3 {[%emt 0:00:42]} 53. Kb2 {[%emt 0:00:35]} Rxg3 {[%emt 0:00:08]} 54. Rb5 {[%emt 0:01:27]} Rg4 {[%emt 0:01:18]} 55. Rb4 {[%emt 0:00:50]} f5 {[%emt 0:00:13] ...f4 ist eine echte Drohung.} 56. Kc3 {[%emt 0:00:48]} f4 {[%emt 0:02:06]} 57. a4 {[%emt 0:00:04]} ({Günstiger ist} 57. Kd3 $11) 57... f3 {[%emt 0:01:04]} (57... Rxh4 58. a5 $11) (57... Rg3+ $1 $15 58. Kd2 Kf5) 58. Rxg4+ $4 {[%emt 0:00:27][%mdl 8192]} (58. Rb8 $11) 58... hxg4 {[%emt 0:00:05] KPP-KPP} 59. Kd2 {[%emt 0:00:09]} g3 {[%emt 0:00:07]} 60. Ke3 {[%emt 0:00:11] [#]} g2 $1 {[%emt 0:00:05]} (60... f2 61. Ke2 Kf5 (61... Kh5 62. a5 $11) 62. a5 $11) 61. Kf2 {[%emt 0:00:03]} Kh5 {[%emt 0:00:04]} 62. a5 {[%emt 0:00:16]} Kxh4 {[%emt 0:00:05]} 63. a6 {[%emt 0:00:06] [#]} Kh5 $4 {[%emt 0:10:55][%mdl 8192]} (63... Kh3 $1 64. a7 Kh2 65. Kxf3 g1=Q (65... g1=B 66. a8=Q) 66. a8=Q Qh1+ 67. Kf4 Qxa8 68. Ke5 Qd8 69. Ke6 Kg3 70. Ke5 Kf3 71. Ke6 Kf4 72. Kf7 Kf5 73. Kg7 Qe7+ 74. Kh6 Qd7 75. Kh5 Qh7#) 64. Kg1 {[%emt 0:02:06]} (64. Kxf3 {führt zum Matt.} g1=Q (64... g1=B 65. Kf4 $11) 65. Ke4 Qg6+ 66. Ke5 Qxa6 67. Kd5 Qb5+ 68. Kd4 Kg5 69. Kc3 Kg4 70. Kd4 Kf4 71. Kc3 Ke3 72. Kc2 Qb4 73. Kc1 Kd3 74. Kd1 Qd2#) 64... Kh4 {[%emt 0:00:00][%mdl 32768] Eine wilde Partie.   Gewichteter Fehlerwert: Weiß=0.69/Schwarz=0.77.  Verlustzug:     	Weiß=1     	---        Gewinn verpasst:   	Weiß=1     	---        Fehler:       	Weiß=5     	Schwarz=7     Ungenau:       	Weiß=1     	Schwarz=3     OK:         	Weiß=11    	Schwarz=4     Bester:       	Weiß=5     	Schwarz=2     Stark:        	---       	Schwarz=1    . Fehler vom Sensorbrett (Ke4/e5)?} 0-1

[Event "2nd Cambridge Open 2024"]
[Site "Cambridge"]
[Date "2024.02.21"]
[Round "5.11"]
[White "Woltery, Nicolai"]
[Black "Golubovic, Boris"]
[Result "1/2-1/2"]
[ECO "D79"]
[WhiteElo "1979"]
[BlackElo "2342"]
[Annotator "TA"]
[PlyCount "52"]
[EventDate "2024.02.18"]
[EventType "swiss"]
[EventCountry "ENG"]
[SourceTitle "playchess.com"]
[Source "ChessBase"]
[SourceQuality "1"]
[TimeControl "5400+30"]

{[%evp 16,52,23,28,28,9,15,16,19,0,12,-20,-6,-6,-5,-4,0,0,-3,-8,0,-28,0,0,6,-18,-19,-14,-23,-27,-15,-17,-10,-12,-12,-18,0,0,10]} 1. c4 {[%emt 0:02:05]} Nf6 {[%emt 0:00:40]} 2. Nc3 {[%emt 0:00:04]} g6 {[%emt 0:01:30]} 3. g3 {[%emt 0:00:05]} c6 {[%emt 0:00:17]} 4. d4 {[%emt 0:00:55]} d5 {[%emt 0:02:07]} 5. cxd5 {[%emt 0:01:56]} cxd5 {[%emt 0:00:07]} 6. Bg2 {[%emt 0:00:20]} Bg7 {[%emt 0:00:08]} 7. Nf3 {[%emt 0:01:29]} O-O {[%emt 0:00:09]} 8. O-O {[%emt 0:00:23]} e6 {[%emt 0:02:21]} 9. Bf4 {[%emt 0:05:47]} Bd7 {[%emt 0:01:39]} 10. Qb3 {[%emt 0:01:06]} Bc6 {[%emt 0:00:23]} 11. Ne5 {[%emt 0:03:05]} Nfd7 {[%emt 0:01:51]} 12. Nf3 {[%emt 0:08:14]} Nb6 {[%emt 0:11:27]} 13. Be5 {[%emt 0:06:13]} f6 {[%emt 0:14:45]} 14. Bxb8 {[%emt 0:03:33]} Rxb8 {[%emt 0:01:22]} 15. Nd2 {[%emt 0:05:35]} f5 {[%emt 0:06:07]} 16. e3 {[%emt 0:01:55]} g5 {[%emt 0:00:36]} 17. Ne2 {[%emt 0:06:05]} Qd6 {[%emt 0:06:46]} 18. Rfe1 {[%emt 0:05:31]} Kh8 {[%emt 0:08:36]} 19. a4 {[%emt 0:01:44]} Nd7 {[%emt 0:02:14]} 20. Qa3 {[%emt 0:02:40]} Qxa3 {[%emt 0:02:57]} 21. Rxa3 {[%emt 0:00:01]} Rfc8 {[%emt 0:00:31]} 22. Raa1 {[%emt 0:05:10]} Bf8 {[%emt 0:03:31]} 23. Reb1 {[%emt 0:03:14] Die Stellung ist ausgeglichen.} Bb4 {[%emt 0:05:20]} 24. Nf3 {[%emt 0:00:43]} h6 {[%emt 0:00:35]} 25. h4 {[%emt 0:01:54]} g4 {[%emt 0:05:38]} 26. Ne1 {[%emt 0:02:11]} Kg7 {[%emt 0:02:42] Nicht viel passiert in dieser Partie.   Gewichteter Fehlerwert: Weiß=0.08 (makellos) /Schwarz=0.06 (makellos) .  Ungenau:       	Weiß=2     	Schwarz=2     OK:         	Weiß=5     	Schwarz=9} 1/2-1/2

[Event "2nd Cambridge Open 2024"]
[Site "Cambridge"]
[Date "2024.02.21"]
[Round "5.12"]
[White "Hagesather, Nina"]
[Black "Dishman, Stephen"]
[Result "0-1"]
[ECO "B19"]
[WhiteElo "1973"]
[BlackElo "2273"]
[Annotator "TA"]
[PlyCount "153"]
[EventDate "2024.02.18"]
[EventType "swiss"]
[EventCountry "ENG"]
[SourceTitle "playchess.com"]
[Source "ChessBase"]
[SourceQuality "1"]
[TimeControl "5400+30"]

{[%evp 24,153,26,21,0,0,21,22,15,19,17,15,16,8,1,0,0,0,0,-10,0,0,0,-37,-9,-33,-14,-37,-43,-51,-58,-51,-50,-51,-43,-58,-53,-45,-39,-108,-107,-97,-101,-106,-104,-98,-112,-104,-103,-164,-174,-218,-219,-228,-35,-222,-214,-225,-189,-210,-216,-209,-204,-172,-197,-305,-305,-289,-296,-407,-406,-462,-393,-364,-370,-567,-530,-568,-454,-536,-192,-481,-416,-416,-8,-8,-8,-8,0,0,0,0,0,-166,0,0,0,0,0,0,0,0,0,0,0,-29973,-29974,-29973,-29974,-29975,-29974,-29979,-29976,-29976,-29977,-29977,-29978,-29978,-29979,-29979,-29980,-29980,-29980,-29986,-29986,-29986,-29987,-29987,-29988,-29988,-29989,-29990]} 1. e4 {[%emt 0:00:04]} c6 {[%emt 0:00:06]} 2. d4 {[%emt 0:00:05]} d5 {[%emt 0:00:08]} 3. Nc3 {[%emt 0:00:09]} dxe4 {[%emt 0:00:06]} 4. Nxe4 {[%emt 0:00:10]} Bf5 {[%emt 0:00:11]} 5. Ng3 {[%emt 0:00:13]} Bg6 {[%emt 0:00:06]} 6. Nf3 {[%emt 0:00:09]} Nd7 {[%emt 0:00:53]} 7. h4 {[%emt 0:00:34]} h6 {[%emt 0:00:13]} 8. h5 {[%emt 0:00:04]} Bh7 {[%emt 0:00:08]} 9. Bd3 {[%emt 0:00:11]} Bxd3 {[%emt 0:00:06]} 10. Qxd3 {[%emt 0:00:03]} e6 {[%emt 0:00:13]} 11. Bd2 {[%emt 0:00:27]} Ngf6 {[%emt 0:00:16]} 12. Ne4 {[%emt 0:02:43] B19: Caro-Kann (Hauptvariante).} Be7 {[%emt 0:03:30]} 13. Nxf6+ {[%emt 0:02:10]} Nxf6 {[%emt 0:00:41]} 14. O-O-O {[%emt 0:02:29]} c5 {[%emt 0:00:34]} 15. Qb5+ {[%emt 0:06:42]} Qd7 {[%emt 0:00:07]} 16. Qxd7+ {[%emt 0:00:07]} Nxd7 {[%emt 0:00:10]} 17. Be3 {[%emt 0:05:49]} cxd4 {[%emt 0:00:17]} 18. Nxd4 {[%emt 0:04:52]} a6 {[%emt 0:04:29]} 19. g4 $146 {[%emt 0:05:15]} ({Predecessor:} 19. Nb3 Rc8 20. f3 Rc7 21. Rhe1 Nf6 22. g4 O-O 23. Bf4 Rc4 24. Be5 {½-½ Medarde Santiago,L (2341)-Peralta,F (2569) Compostela Masters 1st 2018 (1)}) 19... Nf6 {[%emt 0:05:08]} 20. f3 {[%emt 0:09:09]} Nd5 {[%emt 0:04:05]} 21. Bd2 {[%emt 0:05:38]} Rc8 {[%emt 0:10:07]} 22. Ne2 {[%emt 0:08:12]} O-O {[%emt 0:15:24]} 23. Nc3 {[%emt 0:06:02]} Nb6 {[%emt 0:05:34]} 24. Ne4 {[%emt 0:05:02]} (24. Bf4 $5) 24... Nc4 {[%emt 0:07:04]} 25. Bc3 {[%emt 0:10:12]} f5 {[%emt 0:01:32]} 26. gxf5 $1 {[%emt 0:07:42]} exf5 {[%emt 0:00:47]} 27. Rd7 $1 {[%emt 0:06:07]} Rf7 $1 {[%emt 0:01:03]} 28. Nd2 {[%emt 0:00:07]} Bg5 {[%emt 0:03:00]} 29. Rd4 {[%emt 0:02:33]} Be3 {[%emt 0:07:41]} 30. Rd3 $1 {[%emt 0:01:25]} Rfc7 {[%emt 0:01:31]} 31. Re1 {[%emt 0:04:36]} (31. Kb1 $15 Na3+ 32. Ka1) 31... f4 $17 {[%emt 0:02:37]} 32. Kb1 {[%emt 0:00:55]} Na3+ {[%emt 0:02:18]} 33. bxa3 {[%emt 0:01:59]} (33. Kc1 Nb5 34. Kd1 Nxc3+ 35. bxc3 Rxc3 36. Rxc3 Rxc3 $17) 33... Rxc3 {[%emt 0:00:06]} 34. Rxc3 {[%emt 0:00:18]} Rxc3 {[%emt 0:00:08]} 35. Ne4 {[%emt 0:01:03]} Rxa3 {[%emt 0:02:19]} 36. Rd1 {[%emt 0:00:13]} (36. Kb2 $17 {war angesagt.} Ra5 37. Rh1) 36... Ra5 $1 $19 {[%emt 0:07:31]} 37. Rd8+ {[%emt 0:00:13]} Kh7 {[%emt 0:04:05]} 38. Rd7 {[%emt 0:00:37]} Rb5+ {[%emt 0:00:26]} (38... Rxh5 39. Nf6+ (39. Rxb7 $2 Rh3 $19) 39... Kg6 40. Nxh5 Kxh5 41. Rxg7 $16) 39. Ka1 {[%emt 0:00:19]} Kg8 $1 {[%emt 0:00:19]} ({Nicht} 39... Rxh5 40. Nf6+ (40. Rxb7 $2 Rh3 $19) 40... Kg6 41. Nxh5 Kxh5 42. Kb2 $11 (42. Rxg7 $2 Bd4+ 43. Kb1 Bxg7 $19)) 40. c4 {[%emt 0:02:00]} Rxh5 {[%emt 0:02:17]} 41. Rxb7 {[%emt 0:00:10]} Re5 {[%emt 0:13:44]} 42. Kb2 {[%emt 0:01:35]} h5 {[%emt 0:00:00]} 43. Kc3 {[%emt 0:00:28]} h4 {[%emt 0:00:00]} 44. Rb2 {[%emt 0:00:49]} (44. Rb8+ $142 Kh7 45. Rb1) 44... h3 $19 {[%emt 0:00:00]} 45. Rh2 {[%emt 0:01:12]} Rh5 {[%emt 0:00:00]} 46. Kb4 {[%emt 0:00:17]} a5+ {[%emt 0:00:00]} 47. Ka4 {[%emt 0:00:13]} Bg1 {[%emt 0:00:00]} 48. Rh1 {[%emt 0:00:03]} h2 {[%emt 0:00:00]} 49. c5 {[%emt 0:00:06]} (49. Nd2 $142) 49... Kf8 {[%emt 0:00:00]} 50. Kxa5 {[%emt 0:00:06]} Ke7 {[%emt 0:01:01]} 51. Kb6 {[%emt 0:00:42]} g5 $2 {[%emt 0:01:07]} (51... Re5 52. Nc3 Rxc5 (52... Bxc5+ $2 53. Kc6 $19)) 52. Kb7 $2 {[%emt 0:00:54]} (52. a4) 52... g4 $19 {[%emt 0:01:02]} 53. fxg4 {[%emt 0:00:59] [#]} Re5 $2 {[%emt 0:00:39]} (53... Rd5 $1 $19 {[%cal Of4f3] ...f3! ist eine echte Drohung.} 54. c6 f3) 54. Nd2 $1 $11 {[%emt 0:01:16]} Rxc5 {[%emt 0:01:22]} 55. Nf3 {[%emt 0:02:32]} Rc2 {[%emt 0:00:41]} (55... Ra5 {vereinfacht} 56. Nxh2 Bf2 57. Nf3 Ra3) 56. Nxg1 {[%emt 0:00:00]} hxg1=Q ({Keinesfalls} 56... hxg1=B 57. Rxg1 Rxa2 58. Kc6 $17) 57. Rxg1 {[%emt 0:00:00]} Rxa2 {[%emt 0:00:24]} 58. Kc6 $2 {[%emt 0:00:00] [#]} (58. g5 $1 $11 {und Weiss steht sicher.}) 58... Kf6 $2 {[%emt 0:00:56]} (58... Ke6 $1 $19 59. Kc5 Ke5 60. Re1+ Kf6) 59. g5+ $1 $11 {[%emt 0:00:01]} Kg6 {[%emt 0:00:08]} (59... Kf5 $5 60. g6 $8 Ra6+ 61. Kd5 Rxg6 62. Rxg6 Kxg6 $11) 60. Kd5 {[%emt 0:00:10]} Re2 {[%emt 0:00:43]} 61. Kd4 {[%emt 0:00:12]} f3 {[%emt 0:00:43]} 62. Kd3 {[%emt 0:00:14]} Kf5 {[%emt 0:00:32]} 63. g6 $1 {[%emt 0:02:36]} Rg2 {[%emt 0:00:04]} 64. Rf1 $2 {[%emt 0:00:07][%mdl 8192]} (64. Ra1 $11) 64... Kf4 $1 {[%emt 0:00:07]} ({Minderwertig wäre} 64... Kxg6 65. Rxf3 Ra2 66. Rf4 $11) 65. Ra1 {[%emt 0:00:54]} Rxg6 {[%emt 0:00:34]} 66. Ra8 {[%emt 0:00:38]} Rd6+ {[%emt 0:00:20]} 67. Kc2 {[%emt 0:00:05]} Kg3 {[%emt 0:00:07]} 68. Rg8+ {[%emt 0:00:17]} Kh2 {[%emt 0:00:13]} 69. Rf8 {[%emt 0:00:09]} Kg2 {[%emt 0:00:04]} 70. Rg8+ {[%emt 0:00:09]} Kf1 {[%emt 0:00:06]} 71. Rf8 {[%emt 0:00:16]} f2 {[%emt 0:00:12]} 72. Rf7 {[%emt 0:00:20]} Rd5 {[%emt 0:00:12]} 73. Kc1 {[%emt 0:00:30]} Ke2 {[%emt 0:00:25]} 74. Re7+ {[%emt 0:00:08]} Kf3 {[%emt 0:00:07]} 75. Rf7+ {[%emt 0:00:08]} Ke3 {[%emt 0:00:05]} 76. Kc2 {[%emt 0:00:37]} Rd4 {[%emt 0:00:49]} 77. Rf5 {[%emt 0:01:33]} 0-1

[Event "2nd Cambridge Open 2024"]
[Site "Cambridge"]
[Date "2024.02.21"]
[Round "5.13"]
[White "Gasanov, Eldar"]
[Black "Hanache, Kai"]
[Result "1-0"]
[ECO "D96"]
[WhiteElo "2487"]
[BlackElo "1926"]
[Annotator "TA"]
[PlyCount "45"]
[EventDate "2024.02.18"]
[EventType "swiss"]
[EventCountry "ENG"]
[SourceTitle "playchess.com"]
[Source "ChessBase"]
[SourceQuality "1"]
[TimeControl "5400+30"]

{[%evp 18,45,53,16,48,12,17,24,101,79,134,132,167,152,185,189,343,362,365,356,351,312,432,422,433,433,433,433,433,426]} 1. d4 {[%emt 0:00:21]} Nf6 {[%emt 0:00:17]} 2. c4 {[%emt 0:00:27]} g6 {[%emt 0:00:14]} 3. Nc3 {[%emt 0:00:32]} d5 {[%emt 0:00:13]} 4. Nf3 {[%emt 0:01:05]} Bg7 {[%emt 0:00:28]} 5. Qb3 {[%emt 0:00:13]} c6 {[%emt 0:01:39]} 6. cxd5 {[%emt 0:05:04]} cxd5 {[%emt 0:00:15]} 7. Bg5 {[%emt 0:00:26][%cal Bc1g5,Bg5h4,Bh4g3][%mdl 32]} e6 {[%emt 0:04:59]} 8. e3 {[%emt 0:00:28]} O-O {[%emt 0:00:51]} 9. Bd3 {[%emt 0:01:28]} Nc6 {[%emt 0:01:10]} 10. O-O {[%emt 0:00:13]} a6 {[%emt 0:01:27]} 11. Rfc1 {[%emt 0:06:48]} h6 {[%emt 0:13:44]} 12. Bh4 {[%emt 0:00:34]} b5 {[%emt 0:05:08] Inhibits Na4.} (12... g5 $11 {keeps the balance.} 13. Bg3 Nh5) 13. Ne5 {[%emt 0:06:49][%cal Bf3e5,Be5c6,Bc6e7][%mdl 32]} Ne7 {[%emt 0:06:10]} (13... Bd7 $142) 14. a4 $16 {[%emt 0:03:41] White is much more active. The black rooks are passive.} bxa4 {[%emt 0:02:39]} 15. Nxa4 {[%emt 0:00:13]} g5 {[%emt 0:01:46]} 16. Bg3 {[%emt 0:00:32]} Nh5 $2 {[%emt 0:02:30]} (16... Ra7 17. h3 Ne4) 17. Nb6 $18 {[%emt 0:08:21]} Rb8 {[%emt 0:01:43][%cal Ba8b8,Bb8b6,Bb6d6][%mdl 32] [#] White must now prevent ...Nxg3.} 18. Nc6 {[%emt 0:00:22]} Rxb6 {[%emt 0:02:17]} 19. Nxe7+ {[%emt 0:01:01]} (19. Nxd8 $2 Rxb3 20. Bd6 Rxd8 $19) 19... Kh8 {[%emt 0:00:15]} 20. Qa3 {[%emt 0:00:56] White is clearly winning.} Nxg3 {[%emt 0:03:49]} 21. Rxc8 {[%emt 0:04:17]} ({But not} 21. Nxc8 Rb8 22. Ne7 (22. Bxa6 Ne4 $16) (22. fxg3 Rxc8 23. Bxa6 Ra8 $14) (22. Qxa6 Nf5 $16) 22... Ne4 23. Bxe4 (23. Bxa6 Rb6 $16) (23. Nc6 Qb6 $18) 23... dxe4 $18) 21... Qd6 {[%emt 0:03:37]} 22. Qxd6 {[%emt 0:02:47]} ({Weaker is} 22. fxg3 Qxa3 23. bxa3 (23. Rxa3 Rb7 $16) 23... Rxc8 24. Nxc8 Rc6 $18) 22... Rxd6 {[%emt 0:00:33]} 23. hxg3 {[%emt 0:00:06] Weighted Error Value: White=0.08 (flawless) /Black=0.49.  Mistake:       	---       	Black=3      Inaccurate:     	White=1     	Black=1      OK:         	White=6     	Black=4      Best:        	White=3     	Black=1} 1-0

[Event "2nd Cambridge Open 2024"]
[Site "Cambridge"]
[Date "2024.02.21"]
[Round "5.14"]
[White "Pereslavtsev, Alexandr"]
[Black "Bharat Kumar, Balahari"]
[Result "1-0"]
[ECO "D37"]
[WhiteElo "1696"]
[BlackElo "1995"]
[Annotator "RC"]
[PlyCount "81"]
[EventDate "2024.02.18"]
[EventType "swiss"]
[EventCountry "ENG"]
[SourceTitle "playchess.com"]
[Source "ChessBase"]
[SourceQuality "1"]
[TimeControl "5400+30"]

1. d4 {[%emt 0:00:01]} d5 {[%emt 0:00:09]} 2. c4 {[%emt 0:00:02]} e6 {[%emt 0:00:07]} 3. Nc3 {[%emt 0:00:06]} a6 {[%emt 1:31:44]} 4. cxd5 {[%emt 0:00:05]} exd5 {[%emt 0:00:00]} 5. Nf3 {[%emt 0:00:03]} Nf6 {[%emt 0:00:00]} 6. Bg5 {[%emt 0:00:03]} c6 {[%emt 0:00:00]} 7. Qc2 {[%emt 0:00:06]} Be6 {[%emt 0:00:00]} 8. e3 {[%emt 0:00:30]} Nbd7 {[%emt 0:00:00]} 9. Bd3 {[%emt 0:00:10]} h6 {[%emt 0:00:00]} 10. Bh4 {[%emt 0:00:11]} g5 {[%emt 0:00:00]} 11. Bg3 {[%emt 0:00:04]} Nh5 {[%emt 0:00:00]} 12. Be5 {[%emt 0:02:28]} Nxe5 {[%emt 0:00:00]} 13. Nxe5 {[%emt 0:00:07]} Bd6 {[%emt 0:00:00]} 14. Qe2 {[%emt 0:01:10]} Nf6 {[%emt 0:00:00]} 15. Rc1 {[%emt 0:04:36]} Qe7 {[%emt 0:00:00]} 16. Na4 {[%emt 0:07:08]} Bxe5 {[%emt 0:00:00]} 17. dxe5 {[%emt 0:00:11]} Nd7 {[%emt 0:00:00]} 18. Qd2 {[%emt 0:03:44]} b5 {[%emt 0:00:00]} 19. Nc3 {[%emt 0:01:33]} Nxe5 {[%emt 0:00:00]} 20. Bb1 {[%emt 0:01:32]} Qf6 {[%emt 0:00:00]} 21. b3 {[%emt 0:04:48]} h5 {[%emt 0:00:00]} 22. Ne2 {[%emt 0:01:39]} h4 {[%emt 0:00:00]} 23. f4 {[%emt 0:03:22]} gxf4 {[%emt 0:00:00]} 24. exf4 {[%emt 0:00:17]} Ng4 {[%emt 0:00:00]} 25. h3 {[%emt 0:03:08]} Nh6 {[%emt 0:00:00]} 26. Rxc6 {[%emt 0:04:16]} Nf5 {[%emt 0:00:00]} 27. O-O {[%emt 0:20:13]} Rg8 {[%emt 0:00:00]} 28. Re1 {[%emt 0:01:41]} Qg7 {[%emt 0:03:45]} 29. g4 {[%emt 0:07:15]} Ne7 {[%emt 0:01:30]} 30. Rxe6 {[%emt 0:00:37]} fxe6 {[%emt 0:00:14]} 31. Nd4 {[%emt 0:00:06]} Rc8 {[%emt 0:02:23]} 32. Rxe6 {[%emt 0:02:19]} Kd7 {[%emt 0:04:12]} 33. Nf5 {[%emt 0:12:07]} Nxf5 {[%emt 0:02:05]} 34. Bxf5 {[%emt 0:00:04]} Kc7 {[%emt 0:00:42]} 35. Qa5+ {[%emt 0:01:06]} Kb8 {[%emt 0:00:33]} 36. Rb6+ {[%emt 0:00:18]} Ka8 {[%emt 0:00:21]} 37. Rxa6+ {[%emt 0:00:25]} Kb8 {[%emt 0:00:22]} 38. Ra8+ {[%emt 0:00:57]} Kb7 {[%emt 0:00:10]} 39. Qa6+ {[%emt 0:00:12]} Kc7 {[%emt 0:00:06]} 40. Ra7+ {[%emt 0:00:09]} Kd8 {[%emt 0:00:10]} 41. Qd6+ {[%emt 0:00:07]} 1-0